bitfinex/quotes_BTCUSD_20241102
["timestamp","ask_amount","ask_price","bid_price","bid_amount"]
[1730564949556,0.36808624,69436.0,69435.0,0.52053058]
[1730564951886,0.36808624,69436.0,69435.0,0.6064186]
[1730564952317,0.36808624,69436.0,69435.0,0.60651701]
[1730564953864,0.36808624,69436.0,69435.0,0.61651701]
[1730564954580,0.36808624,69436.0,69435.0,0.61201741]
[1730564954802,0.36808624,69436.0,69435.0,0.61651708]
[1730564955032,0.36349969,69436.0,69435.0,0.61651706]
[1730564955263,0.36349969,69436.0,69435.0,0.53062299]
[1730564955759,0.36349969,69436.0,69435.0,0.61651706]
[1730564955942,0.36349969,69436.0,69435.0,0.60651706]
[1730564956869,0.36349969,69436.0,69435.0,0.60639675]
[1730564957091,0.36349969,69436.0,69435.0,0.52050674]
[1730564957696,0.36349969,69436.0,69435.0,0.60639675]
[1730564958709,0.36349969,69436.0,69435.0,0.60639669]
[1730564958921,0.36349969,69436.0,69435.0,0.61639669]
[1730564959463,0.36349969,69436.0,69435.0,0.53050668]
[1730564961471,0.36349969,69436.0,69435.0,0.53058723]
[1730564961693,0.36349969,69436.0,69435.0,0.52058723]
[1730564965085,0.36349969,69436.0,69435.0,0.60648265]
[1730564966258,0.36349969,69436.0,69435.0,0.60648277]
[1730564967954,0.36349969,69436.0,69435.0,0.60198306]
[1730564968184,0.36349969,69436.0,69435.0,0.60648276]
[1730564969891,0.36349969,69436.0,69435.0,0.60198306]
[1730564970093,0.36349969,69436.0,69435.0,0.60648273]
[1730564970286,0.36349969,69436.0,69435.0,0.58348273]
[1730564970522,0.56559969,69436.0,69435.0,0.58348273]
[1730564973716,0.56559969,69436.0,69435.0,0.57898306]
[1730564973932,0.56559969,69436.0,69435.0,0.58348274]
[1730564976674,0.56559969,69436.0,69435.0,0.57898306]
[1730564976891,0.56559969,69436.0,69435.0,0.58348274]
[1730564980110,0.56559969,69436.0,69435.0,0.56201019]
[1730564980314,0.57059969,69436.0,69435.0,0.56201019]
[1730564980531,0.57059969,69436.0,69435.0,0.35084285]
[1730564982252,0.56559969,69436.0,69435.0,0.35084285]
[1730564982472,0.57059969,69436.0,69435.0,0.35084285]
[1730564984604,0.57059969,69436.0,69435.0,0.34634317]
[1730564984778,0.57059969,69436.0,69435.0,0.35084339]
[1730564988496,0.56559969,69436.0,69435.0,0.35084339]
[1730564988716,0.57059969,69436.0,69435.0,0.34634317]
[1730564988928,0.57059969,69436.0,69435.0,0.35084339]
[1730564990752,0.56559969,69436.0,69435.0,0.35084339]
[1730564990978,0.57059969,69436.0,69435.0,0.35084339]
[1730564992396,0.56559969,69436.0,69435.0,0.35084339]
[1730564992606,0.57059969,69436.0,69435.0,0.35084339]
[1730564993019,0.56559969,69436.0,69435.0,0.35084339]
[1730564993216,0.57059969,69436.0,69435.0,0.35084339]
[1730564993460,0.56559969,69436.0,69435.0,0.35084339]
[1730564993663,0.57059969,69436.0,69435.0,0.35084339]
[1730564996209,0.56559969,69436.0,69435.0,0.35084339]
[1730564996552,0.57059969,69436.0,69435.0,0.35084339]
[1730564996772,0.57059969,69436.0,69435.0,0.35084332]
[1730564997142,0.56559969,69436.0,69435.0,0.35084332]
[1730564997344,0.57059969,69436.0,69435.0,0.35084332]
[1730564999185,0.56559969,69436.0,69435.0,0.35084332]
[1730564999403,0.57059969,69436.0,69435.0,0.35084332]
[1730564999608,0.56559969,69436.0,69435.0,0.35084332]
[1730564999817,0.57059969,69436.0,69435.0,0.35084332]
[1730565000479,0.56559969,69436.0,69435.0,0.35084332]
[1730565000702,0.57059969,69436.0,69435.0,0.35084332]
[1730565001359,0.57059969,69436.0,69435.0,0.34634317]
[1730565001585,0.57059969,69436.0,69435.0,0.35084336]
[1730565002239,0.56559969,69436.0,69435.0,0.35084336]
[1730565002501,0.57059969,69436.0,69435.0,0.35084336]
[1730565003333,0.49109969,69436.0,69435.0,0.35084336]
[1730565003776,0.36849969,69436.0,69435.0,0.35084336]
[1730565006988,0.36349969,69436.0,69435.0,0.40520905]
[1730565008125,0.36349969,69436.0,69435.0,0.35084336]
[1730565009708,0.36349969,69436.0,69435.0,0.39374326]
[1730565011059,0.36349969,69436.0,69435.0,0.61028878]
[1730565011280,0.33469569,69436.0,69435.0,1.34033888]
[1730565011510,0.33469569,69436.0,69435.0,1.48902101]
[1730565011758,0.33469569,69436.0,69435.0,1.49352047]
[1730565011973,0.24828369,69436.0,69435.0,1.40465761]
[1730565013647,0.21947969,69436.0,69435.0,1.40465761]
[1730565013850,0.10426369,69436.0,69435.0,1.34033863]
[1730565014067,0.10426369,69436.0,69435.0,1.40465761]
[1730565014722,6.9e-07,69436.0,69435.0,1.34033863]
[1730565014939,6.9e-07,69436.0,69435.0,0.55354263]
[1730565015657,0.40325669,69436.0,69435.0,0.55354263]
[1730565015869,0.40325669,69436.0,69435.0,0.66334522]
[1730565015870,0.31684469,69436.0,69435.0,0.66334522]
[1730565016081,0.31684469,69436.0,69435.0,1.73629722]
[1730565016317,0.31684469,69436.0,69435.0,0.99319509]
[1730565016519,0.31684469,69436.0,69435.0,0.97304009]
[1730565017000,0.31684469,69436.0,69435.0,0.92039409]
[1730565017227,0.31684469,69436.0,69435.0,0.90024009]
[1730565019205,0.31684469,69436.0,69435.0,0.90023434]
[1730565019989,0.31684469,69436.0,69435.0,0.84914434]
[1730565021593,0.31684469,69436.0,69435.0,0.80628422]
[1730565021797,0.31684469,69436.0,69435.0,0.86386422]
[1730565022023,0.31684469,69436.0,69435.0,0.82033428]
[1730565023642,0.31684469,69436.0,69435.0,0.82033781]
[1730565024667,0.31684469,69436.0,69435.0,0.77747416]
[1730565025503,0.31766569,69436.0,69435.0,0.77747416]
[1730565025981,0.31766569,69436.0,69435.0,0.93160073]
[1730565026198,0.31766569,69436.0,69435.0,0.63777173]
[1730565026415,0.31766569,69436.0,69435.0,0.76965073]
[1730565029472,0.31766569,69436.0,69435.0,0.63777173]
[1730565029923,0.31766569,69436.0,69435.0,0.77376773]
[1730565031945,0.31766569,69436.0,69435.0,0.86015773]
[1730565032181,0.31766569,69436.0,69435.0,0.77376773]
[1730565033745,0.095816,69443.0,69435.0,0.77376773]
[1730565033746,0.000816,69443.0,69442.0,0.183703]
[1730565033989,1e-06,69443.0,69442.0,0.80276024]
[1730565034219,1e-06,69443.0,69442.0,3.61900324]
[1730565034449,1e-06,69443.0,69442.0,3.57616874]
[1730565034673,0.432011,69443.0,69442.0,3.02549874]
[1730565034893,0.432011,69443.0,69442.0,2.90018174]
[1730565035560,0.432011,69443.0,69442.0,1.16276024]
[1730565036020,0.432011,69443.0,69442.0,3.13795924]
[1730565036237,0.345608,69443.0,69442.0,3.13795924]
[1730565036457,0.345608,69443.0,69442.0,3.14332333]
[1730565036687,0.345608,69443.0,69442.0,3.17211333]
[1730565036922,0.288006,69443.0,69442.0,3.16761393]
[1730565037183,0.288006,69443.0,69442.0,3.17211263]
[1730565037184,0.201603,69443.0,69442.0,3.17211263]
[1730565037404,0.201603,69443.0,69442.0,2.88479763]
[1730565037633,0.201603,69443.0,69442.0,3.10101642]
[1730565037857,0.201603,69443.0,69442.0,2.94902734]
[1730565038082,0.086399,69443.0,69442.0,2.88479763]
[1730565038325,0.057598,69443.0,69442.0,2.93655499]
[1730565038559,0.057598,69443.0,69442.0,3.23900601]
[1730565038774,0.0001069,69450.0,69446.0,0.02879]
[1730565038991,0.0001069,69450.0,69449.0,0.47205084]
[1730565039212,0.0001069,69450.0,69449.0,1.75391984]
[1730565039450,0.4320769,69450.0,69449.0,1.75391984]
[1730565039936,0.4320769,69450.0,69449.0,1.42170184]
[1730565040166,0.4320769,69450.0,69449.0,1.45049184]
[1730565041936,0.3168849,69450.0,69449.0,1.72779443]
[1730565042161,0.3168849,69450.0,69449.0,1.70438184]
[1730565042162,0.2880869,69450.0,69449.0,1.70438184]
[1730565042834,0.2592889,69450.0,69449.0,1.70438184]
[1730565043087,0.2016929,69450.0,69449.0,1.70888009]
[1730565044027,0.2016929,69450.0,69449.0,1.68009009]
[1730565044256,0.2016929,69450.0,69449.0,1.70888009]
[1730565044709,0.2016929,69450.0,69449.0,1.71429399]
[1730565044940,0.2016929,69450.0,69449.0,1.68550399]
[1730565045161,0.2016929,69450.0,69449.0,1.71429399]
[1730565045998,0.2016929,69450.0,69449.0,1.68550399]
[1730565046886,0.0865009,69450.0,69449.0,1.72828235]
[1730565047092,0.0577029,69450.0,69449.0,1.72828235]
[1730565047782,0.0001069,69450.0,69449.0,2.02378235]
[1730565048240,9e-07,69450.0,69449.0,1.98100399]
[1730565048474,9e-07,69450.0,69449.0,1.03135299]
[1730565049390,0.4319709,69450.0,69449.0,0.9215504]
[1730565049629,0.3167789,69450.0,69449.0,0.9215504]
[1730565049857,0.2591829,69450.0,69449.0,3.9241724]
[1730565050289,0.2591829,69450.0,69449.0,3.9529624]
[1730565050500,0.2591829,69450.0,69449.0,3.8069214]
[1730565050728,0.2591829,69450.0,69449.0,3.7962424]
[1730565050946,0.2591829,69450.0,69449.0,3.7674524]
[1730565051174,0.2591829,69450.0,69449.0,3.7962424]
[1730565051838,0.2591829,69450.0,69449.0,3.79174415]
[1730565052053,0.2591829,69450.0,69449.0,4.12816819]
[1730565052517,0.2591829,69450.0,69449.0,3.83105886]
[1730565052738,0.2591829,69450.0,69449.0,3.68373982]
[1730565053177,0.2591829,69450.0,69449.0,3.46990182]
[1730565053614,0.2591829,69450.0,69449.0,3.43390182]
[1730565053868,0.2591829,69450.0,69449.0,2.83347982]
[1730565054075,0.2591829,69450.0,69449.0,2.81747982]
[1730565054277,0.2591829,69450.0,69449.0,2.67215782]
[1730565055778,0.2591829,69450.0,69449.0,2.6721579]
[1730565056481,0.2591829,69450.0,69449.0,2.83012575]
[1730565056706,0.2591829,69450.0,69449.0,2.83013811]
[1730565056898,0.2591829,69450.0,69449.0,2.76595515]
[1730565057827,0.2591829,69450.0,69449.0,2.76145695]
[1730565058048,0.2591829,69450.0,69449.0,2.76595509]
[1730565058269,0.11884083,69450.0,69449.0,2.8397024]
[1730565059395,0.11884083,69450.0,69449.0,2.83970232]
[1730565060540,0.11884083,69450.0,69449.0,2.41230532]
[1730565060974,0.11884083,69450.0,69449.0,1.21821232]
[1730565061617,0.11884083,69450.0,69449.0,2.97177432]
[1730565061879,0.11884083,69450.0,69449.0,2.78024132]
[1730565062988,0.11884083,69450.0,69449.0,2.78025064]
[1730565063694,0.11884083,69450.0,69449.0,2.8658492]
[1730565064376,0.05586701,69450.0,69449.0,2.78025064]
[1730565065251,0.05586701,69450.0,69449.0,2.75955927]
[1730565065460,0.05586701,69450.0,69449.0,2.78025064]
[1730565066089,0.05586701,69450.0,69449.0,2.75146064]
[1730565066567,0.05086701,69450.0,69449.0,2.75146064]
[1730565067454,0.05086701,69450.0,69449.0,2.59347111]
[1730565067665,0.05086701,69450.0,69449.0,2.7514946]
[1730565068122,0.00588572,69450.0,69449.0,2.7514946]
[1730565069737,0.00588572,69450.0,69449.0,2.85851579]
[1730565070398,0.000816,69455.0,69454.0,0.33358859]
[1730565070613,0.000816,69455.0,69454.0,1.48316456]
[1730565070820,0.000816,69455.0,69454.0,1.46275656]
[1730565071062,0.432756,69455.0,69454.0,1.39852828]
[1730565071958,0.432756,69455.0,69454.0,1.29149128]
[1730565072412,0.288776,69455.0,69454.0,1.65937907]
[1730565072645,0.288776,69455.0,69454.0,1.57978387]
[1730565072872,0.144796,69455.0,69454.0,1.57978387]
[1730565073108,0.144796,69455.0,69454.0,1.68682823]
[1730565073323,0.11241261,69455.0,69454.0,1.57978387]
[1730565073995,0.11241261,69455.0,69454.0,1.60857387]
[1730565075322,0.08361661,69455.0,69454.0,1.60857387]
[1730565076236,0.05482061,69455.0,69454.0,1.60857387]
[1730565076465,0.05482061,69455.0,69454.0,1.58789141]
[1730565076677,0.05482061,69455.0,69454.0,1.60858041]
[1730565076903,6.1e-07,69455.0,69454.0,1.60858041]
[1730565077132,6.1e-07,69455.0,69454.0,0.96789941]
[1730565082524,0.000816,69459.0,69456.0,0.02879]
[1730565082743,0.000816,69459.0,69458.0,0.47203784]
[1730565082966,0.000816,69459.0,69458.0,4.81954982]
[1730565083231,0.432726,69459.0,69458.0,4.82170822]
[1730565085555,0.432726,69459.0,69458.0,4.8218838]
[1730565086704,0.432726,69459.0,69458.0,5.04351994]
[1730565086917,0.432726,69459.0,69458.0,5.04906394]
[1730565087127,0.36975946,69459.0,69458.0,5.17772486]
[1730565088330,0.33737666,69459.0,69458.0,4.8274278]
[1730565088557,0.33737666,69459.0,69458.0,4.84361919]
[1730565088996,0.33737666,69459.0,69458.0,5.1867273]
[1730565089217,0.33737666,69459.0,69458.0,5.22271347]
[1730565090154,0.33737666,69459.0,69458.0,5.2227708]
[1730565090391,0.33737666,69459.0,69458.0,1.0540318]
[1730565090613,0.33737666,69459.0,69458.0,5.00112857]
[1730565090865,0.33737666,69459.0,69458.0,5.2227708]
[1730565091779,0.33737666,69459.0,69458.0,4.87246551]
[1730565091780,0.10702466,69459.0,69458.0,4.87246551]
[1730565092243,0.04943666,69459.0,69458.0,4.87246551]
[1730565092478,0.04943666,69459.0,69458.0,4.95885551]
[1730565092928,0.22433666,69459.0,69458.0,4.77246551]
[1730565093162,0.22433666,69459.0,69458.0,0.91109725]
[1730565093369,0.22433666,69459.0,69458.0,0.90529651]
[1730565093590,0.22433666,69459.0,69458.0,0.91109761]
[1730565093830,0.22433666,69459.0,69458.0,0.90529651]
[1730565094289,0.22433666,69459.0,69458.0,1.00529651]
[1730565096114,0.04943666,69459.0,69458.0,1.00529651]
[1730565096589,0.04943666,69459.0,69458.0,1.00693851]
[1730565096804,0.05025766,69459.0,69458.0,1.00693851]
[1730565098593,0.05025766,69459.0,69458.0,0.99074712]
[1730565099041,0.05025766,69459.0,69458.0,0.99079323]
[1730565100235,0.05025766,69459.0,69458.0,0.97460184]
[1730565100445,0.05025766,69459.0,69458.0,0.99079457]
[1730565101376,0.00527904,69459.0,69458.0,0.99079457]
[1730565101599,0.0772,69463.0,69462.0,0.200774]
[1730565101833,0.0772,69463.0,69462.0,0.65108417]
[1730565102281,0.0956,69465.0,69464.0,0.200771]
[1730565102507,0.0956,69465.0,69464.0,0.51827858]
[1730565102905,0.52748,69465.0,69464.0,0.51827858]
[1730565103145,0.4950962,69465.0,69464.0,0.51827858]
[1730565103569,0.4950962,69465.0,69464.0,0.52827858]
[1730565104452,0.5000962,69465.0,69464.0,0.5282853]
[1730565104672,0.4950962,69465.0,69464.0,0.5282853]
[1730565104913,0.43188,69465.0,69464.0,0.5512853]
[1730565105805,0.43188,69465.0,69464.0,0.5412853]
[1730565106479,0.43688,69465.0,69464.0,0.5412853]
[1730565106705,0.43188,69465.0,69464.0,0.5412853]
[1730565106929,0.43688,69465.0,69464.0,0.5412853]
[1730565108237,0.43688,69465.0,69464.0,0.54129088]
[1730565109139,0.437701,69465.0,69464.0,0.54129088]
[1730565111137,0.437701,69465.0,69464.0,0.5412909]
[1730565112751,0.437701,69465.0,69464.0,0.54131128]
[1730565113219,0.39272191,69465.0,69464.0,0.54131128]
[1730565114802,0.39272191,69465.0,69464.0,0.54131132]
[1730565117042,0.39272191,69465.0,69464.0,0.51831132]
[1730565118152,0.39272191,69465.0,69464.0,0.49762092]
[1730565118365,0.36033692,69465.0,69464.0,0.50211883]
[1730565118603,0.36033692,69465.0,69464.0,0.51831132]
[1730565120579,0.36033692,69465.0,69464.0,0.51995332]
[1730565121029,0.36033692,69465.0,69464.0,0.49930694]
[1730565121246,0.36033692,69465.0,69464.0,0.51999711]
[1730565121500,0.36033692,69465.0,69464.0,0.49930694]
[1730565121734,0.36033692,69465.0,69464.0,0.51999711]
[1730565122638,0.35533692,69465.0,69464.0,0.54299711]
[1730565123088,0.36033692,69465.0,69464.0,0.54299711]
[1730565124940,0.36033692,69465.0,69464.0,0.54300102]
[1730565125171,0.36033692,69465.0,69464.0,0.52000102]
[1730565125412,0.35533692,69465.0,69464.0,0.52000102]
[1730565126302,0.35533692,69465.0,69464.0,0.64876707]
[1730565127941,0.36033692,69465.0,69464.0,0.64876707]
[1730565128413,0.31036023,69465.0,69464.0,0.64880729]
[1730565129516,0.31536023,69465.0,69464.0,0.64880729]
[1730565129967,0.31036023,69465.0,69464.0,0.64880729]
[1730565130447,0.31536023,69465.0,69464.0,0.64880729]
[1730565131335,0.31536023,69465.0,69464.0,0.64880633]
[1730565133318,0.28297693,69465.0,69464.0,0.52000006]
[1730565135992,0.27797693,69465.0,69464.0,0.52000006]
[1730565136638,0.28297693,69465.0,69464.0,0.52000006]
[1730565137310,0.27797693,69465.0,69464.0,0.52000006]
[1730565137542,0.28297693,69465.0,69464.0,0.52000006]
[1730565137764,0.27797693,69465.0,69464.0,0.52000006]
[1730565138189,0.28297693,69465.0,69464.0,0.52000006]
[1730565138640,0.28297693,69465.0,69464.0,0.52008326]
[1730565139072,0.27797693,69465.0,69464.0,0.52008326]
[1730565139544,0.28297693,69465.0,69464.0,0.52008326]
[1730565140892,0.27797693,69465.0,69464.0,0.52008326]
[1730565141106,0.28297693,69465.0,69464.0,0.52008326]
[1730565141952,0.28297693,69465.0,69464.0,0.52008271]
[1730565142793,0.27797693,69465.0,69464.0,0.52008271]
[1730565143012,0.28297693,69465.0,69464.0,0.52008271]
[1730565143468,0.23800095,69465.0,69464.0,0.51108764]
[1730565144088,0.23300095,69465.0,69464.0,0.51108764]
[1730565144328,0.23800095,69465.0,69464.0,0.51108764]
[1730565144989,0.23300095,69465.0,69464.0,0.51108764]
[1730565145213,0.23800095,69465.0,69464.0,0.51108764]
[1730565145711,0.23800095,69465.0,69464.0,0.52108764]
[1730565146359,0.23800095,69465.0,69464.0,0.51108764]
[1730565146581,0.23300095,69465.0,69464.0,0.51108764]
[1730565146793,0.23800095,69465.0,69464.0,0.51108764]
[1730565148314,0.20061806,69465.0,69464.0,0.63995217]
[1730565148737,0.20061806,69465.0,69464.0,0.6399519]
[1730565148954,0.20561806,69465.0,69464.0,0.6399519]
[1730565149160,0.20061806,69465.0,69464.0,0.63995211]
[1730565149370,0.20561806,69465.0,69464.0,0.63995211]
[1730565149580,0.20061806,69465.0,69464.0,0.63995211]
[1730565149790,0.20561806,69465.0,69464.0,0.63995211]
[1730565152461,0.20561806,69465.0,69464.0,0.6400345]
[1730565152671,0.20061806,69465.0,69464.0,0.6400345]
[1730565152923,0.20061806,69465.0,69464.0,0.51115018]
[1730565153142,0.20061806,69465.0,69464.0,0.51115001]
[1730565153368,0.20061806,69465.0,69464.0,0.49945638]
[1730565153583,0.20561806,69465.0,69464.0,0.51115009]
[1730565153818,0.20061806,69465.0,69464.0,0.51115009]
[1730565154033,0.20561806,69465.0,69464.0,0.51115009]
[1730565154884,0.20561806,69465.0,69464.0,0.50665251]
[1730565155095,0.20561806,69465.0,69464.0,0.51115004]
[1730565155728,0.20061806,69465.0,69464.0,0.51115004]
[1730565156934,0.20061806,69465.0,69464.0,0.49945973]
[1730565157152,0.20061806,69465.0,69464.0,0.51115336]
[1730565158013,0.20561806,69465.0,69464.0,0.53415336]
[1730565158256,0.000816,69470.0,69464.0,0.53415336]
[1730565158257,0.000816,69470.0,69469.0,0.200764]
[1730565158430,0.000816,69470.0,69469.0,0.61930695]
[1730565159056,0.432656,69470.0,69469.0,0.61930695]
[1730565160303,0.425756,69470.0,69469.0,0.61930695]
[1730565161010,0.425756,69470.0,69469.0,0.61930685]
[1730565164329,0.425756,69470.0,69469.0,0.61930682]
[1730565164772,0.425756,69470.0,69469.0,0.46071534]
[1730565165009,0.425756,69470.0,69469.0,0.45351929]
[1730565165242,0.425756,69470.0,69469.0,0.46071531]
[1730565165444,0.425756,69470.0,69469.0,0.45621782]
[1730565165663,0.425756,69470.0,69469.0,0.46071531]
[1730565167370,0.426577,69470.0,69469.0,0.46071531]
[1730565167583,0.426577,69470.0,69469.0,0.46626516]
[1730565168011,0.426577,69470.0,69469.0,0.62484611]
[1730565168479,0.39419522,69470.0,69469.0,0.6300302]
[1730565168707,0.39419522,69470.0,69469.0,0.62484611]
[1730565168934,0.39419522,69470.0,69469.0,0.62484606]
[1730565169584,0.27271696,69470.0,69469.0,1.03749158]
[1730565169809,0.015248,69479.0,69478.0,0.330641]
[1730565170028,0.015248,69479.0,69478.0,4.5770668]
[1730565170250,0.015248,69479.0,69478.0,4.06351613]
[1730565170467,0.447038,69479.0,69478.0,4.06351613]
[1730565170701,0.447038,69479.0,69478.0,4.06341613]
[1730565170702,0.418252,69479.0,69478.0,4.06341613]
[1730565170931,0.303108,69479.0,69478.0,4.06341613]
[1730565171150,0.303108,69479.0,69478.0,3.8414028]
[1730565171383,0.303108,69479.0,69478.0,1.39512419]
[1730565171606,0.303108,69479.0,69478.0,1.0452658]
[1730565171830,0.159178,69479.0,69478.0,5.2140048]
[1730565172067,0.159178,69479.0,69478.0,5.44094306]
[1730565172319,0.159178,69479.0,69478.0,5.21958675]
[1730565172529,0.159178,69479.0,69478.0,5.56922738]
[1730565172781,0.015248,69479.0,69478.0,5.58003308]
[1730565173205,0.015248,69479.0,69478.0,5.2303883]
[1730565174071,0.000815,69491.0,69490.0,0.33353559]
[1730565174282,0.000815,69491.0,69490.0,0.7277681]
[1730565174726,0.0813,69499.0,69498.0,0.100722]
[1730565174727,0.0814,69499.0,69498.0,0.100722]
[1730565174940,0.0001,69503.0,69499.0,0.1]
[1730565175174,0.0001,69503.0,69502.0,0.31051859]
[1730565175410,0.0863,69504.0,69503.0,0.200715]
[1730565175411,0.0814,69504.0,69503.0,0.200715]
[1730565175650,0.0814,69504.0,69503.0,0.20521087]
[1730565175874,0.51303,69504.0,69503.0,0.34366612]
[1730565176616,0.51303,69504.0,69503.0,0.56021125]
[1730565176617,0.51293,69504.0,69503.0,0.56021125]
[1730565176859,0.51303,69504.0,69503.0,0.34366573]
[1730565177111,0.43163,69504.0,69503.0,1.09791332]
[1730565177339,0.43163,69504.0,69503.0,0.98811073]
[1730565177562,0.43163,69504.0,69503.0,1.03085876]
[1730565177996,0.43163,69504.0,69503.0,0.98811073]
[1730565178269,0.43163,69504.0,69503.0,1.02626698]
[1730565178518,0.43163,69504.0,69503.0,1.053762]
[1730565178741,0.43163,69504.0,69503.0,1.05916307]
[1730565178981,0.43163,69504.0,69503.0,1.01651134]
[1730565179206,0.43163,69504.0,69503.0,0.6995724]
[1730565179881,0.43163,69504.0,69503.0,0.69507738]
[1730565180114,0.43163,69504.0,69503.0,0.69957238]
[1730565180343,0.43163,69504.0,69503.0,0.34906632]
[1730565181721,0.43163,69504.0,69503.0,0.34457132]
[1730565183097,0.52373,69504.0,69503.0,0.34457132]
[1730565183359,0.61003,69504.0,69503.0,0.100715]
[1730565183563,0.61013,69504.0,69503.0,0.100715]
[1730565184073,0.61013,69504.0,69496.0,0.00449599]
[1730565184074,0.0001,69497.0,69496.0,0.00449599]
[1730565184306,0.1735,69497.0,69496.0,0.100725]
[1730565184542,0.60513,69497.0,69496.0,0.100725]
[1730565185475,0.60513,69497.0,69496.0,0.200725]
[1730565186448,0.61013,69497.0,69496.0,0.200725]
[1730565186674,0.61013,69497.0,69490.0,0.05]
[1730565186675,0.0051,69491.0,69490.0,0.150733]
[1730565186891,0.28660259,69491.0,69490.0,0.150733]
[1730565187135,0.71823259,69491.0,69490.0,0.150733]
[1730565187792,0.60843,69491.0,69490.0,0.150733]
[1730565188443,0.43173,69491.0,69490.0,0.38918825]
[1730565188663,0.43163,69491.0,69490.0,0.39923123]
[1730565188888,0.43173,69491.0,69490.0,0.39923123]
[1730565189553,0.43163,69491.0,69490.0,0.48203382]
[1730565189771,0.43163,69491.0,69490.0,3.84293985]
[1730565189997,0.43163,69491.0,69490.0,4.08604785]
[1730565190286,0.43163,69491.0,69490.0,3.75139453]
[1730565190515,0.43163,69491.0,69490.0,2.86815653]
[1730565190733,0.43163,69491.0,69490.0,1.22892953]
[1730565191402,0.43163,69491.0,69490.0,1.22892946]
[1730565191617,0.43163,69491.0,69490.0,0.66787246]
[1730565192035,0.43163,69491.0,69490.0,0.73199639]
[1730565192245,0.43163,69491.0,69490.0,0.88938399]
[1730565192665,0.43163,69491.0,69490.0,0.51492087]
[1730565193316,0.43163,69491.0,69490.0,0.51499187]
[1730565193526,0.43163,69491.0,69490.0,0.4205478]
[1730565193770,0.43163,69491.0,69490.0,0.5791158]
[1730565194001,0.43163,69491.0,69490.0,0.4205478]
[1730565194223,0.43173,69491.0,69490.0,0.35642387]
[1730565194433,0.43173,69491.0,69490.0,0.35087776]
[1730565194642,0.43173,69491.0,69490.0,0.34368421]
[1730565194851,0.43173,69491.0,69490.0,0.35087776]
[1730565195063,0.43173,69491.0,69490.0,0.34368421]
[1730565195271,0.43173,69491.0,69490.0,0.35087776]
[1730565196111,0.43673,69491.0,69490.0,0.21242251]
[1730565196330,0.51823,69491.0,69490.0,0.21242251]
[1730565197944,0.51823,69491.0,69490.0,0.21242353]
[1730565200998,0.51823,69491.0,69490.0,0.200733]
[1730565201233,0.51823,69491.0,69490.0,0.21242374]
[1730565203111,0.51823,69491.0,69490.0,0.21406574]
[1730565204002,0.51823,69491.0,69490.0,0.20687144]
[1730565204226,0.51823,69491.0,69490.0,0.21406574]
[1730565204498,0.51823,69491.0,69490.0,0.20687144]
[1730565204734,0.43673,69491.0,69490.0,0.21406636]
[1730565205650,0.43173,69491.0,69490.0,0.21406636]
[1730565207205,0.43173,69491.0,69490.0,0.20687168]
[1730565207424,0.43173,69491.0,69490.0,0.21406636]
[1730565207634,0.43173,69491.0,69490.0,0.20687168]
[1730565207854,0.43173,69491.0,69490.0,0.21406636]
[1730565208104,0.43173,69491.0,69490.0,0.20687168]
[1730565208344,0.43173,69491.0,69490.0,0.202375]
[1730565208568,0.43173,69491.0,69490.0,0.21406645]
[1730565208783,0.43173,69491.0,69490.0,0.21406652]
[1730565209211,0.43173,69491.0,69490.0,0.20687174]
[1730565209467,0.43173,69491.0,69490.0,0.21406652]
[1730565210328,0.42673,69491.0,69490.0,0.21406652]
[1730565211481,0.42673,69491.0,69490.0,0.25682255]
[1730565211993,0.42673,69491.0,69490.0,0.24513103]
[1730565212206,0.42673,69491.0,69490.0,0.25682191]
[1730565212435,0.42563,69491.0,69490.0,0.25682191]
[1730565212668,0.42563,69491.0,69490.0,0.39527716]
[1730565212886,0.42063,69491.0,69490.0,0.51040062]
[1730565213128,0.42063,69491.0,69490.0,0.59591268]
[1730565213129,0.42053,69491.0,69490.0,0.59591268]
[1730565213358,0.42053,69491.0,69490.0,0.51040062]
[1730565213564,0.42053,69491.0,69490.0,0.51592292]
[1730565213777,0.38815814,69491.0,69490.0,0.60145214]
[1730565214003,0.38815814,69491.0,69490.0,0.51592292]
[1730565214447,0.38815814,69491.0,69490.0,0.622813]
[1730565214689,0.38815814,69491.0,69490.0,0.51592292]
[1730565215146,0.38815814,69491.0,69490.0,0.622813]
[1730565215371,0.38897914,69491.0,69490.0,0.622813]
[1730565216044,0.38897914,69491.0,69490.0,0.51592292]
[1730565216255,0.37902253,69491.0,69490.0,0.51592292]
[1730565216466,0.37902253,69491.0,69490.0,0.62289787]
[1730565216467,0.37912253,69491.0,69490.0,0.62289787]
[1730565217438,0.37912253,69491.0,69490.0,0.63289787]
[1730565218084,0.37912253,69491.0,69490.0,0.52592292]
[1730565218964,0.37912253,69491.0,69490.0,0.51592292]
[1730565219889,0.37912253,69491.0,69490.0,0.515922]
[1730565220997,0.35422983,69491.0,69490.0,0.515922]
[1730565221226,0.35422983,69491.0,69490.0,0.58022153]
[1730565221455,0.35422983,69491.0,69490.0,0.58022831]
[1730565221685,0.35422983,69491.0,69490.0,0.51603299]
[1730565223646,0.35422983,69491.0,69490.0,0.60161924]
[1730565224089,0.35422983,69491.0,69490.0,0.51603299]
[1730565224323,0.35922983,69491.0,69490.0,0.40636774]
[1730565224554,0.35922983,69491.0,69490.0,0.37757774]
[1730565225232,0.35922983,69491.0,69490.0,0.46316399]
[1730565226098,0.35922983,69491.0,69490.0,0.46333517]
[1730565228112,0.35922983,69491.0,69490.0,0.46339466]
[1730565228542,0.35922983,69491.0,69490.0,0.37771903]
[1730565229919,0.35422983,69491.0,69490.0,0.37771903]
[1730565230825,0.35422983,69491.0,69490.0,0.37777647]
[1730565231717,0.32185617,69491.0,69490.0,0.51623172]
[1730565231932,0.32185617,69491.0,69490.0,0.62336625]
[1730565232368,0.32185617,69491.0,69490.0,0.51623172]
[1730565233262,0.32185617,69491.0,69490.0,0.62336625]
[1730565233487,0.32185617,69491.0,69490.0,0.51623172]
[1730565233714,0.32185617,69491.0,69490.0,0.50454176]
[1730565233963,0.32185617,69491.0,69490.0,0.51623214]
[1730565235285,0.32185617,69491.0,69490.0,0.62343254]
[1730565235545,0.32185617,69491.0,69490.0,0.51627079]
[1730565236001,0.32185617,69491.0,69490.0,0.6234312]
[1730565237325,0.32185617,69491.0,69490.0,0.51627079]
[1730565237776,0.32185617,69491.0,69490.0,0.62344553]
[1730565238422,0.32185617,69491.0,69490.0,0.61176858]
[1730565238639,0.32185617,69491.0,69490.0,0.62345943]
[1730565238864,0.32685617,69491.0,69490.0,0.48500418]
[1730565239089,0.32685617,69491.0,69490.0,0.37229371]
[1730565239957,0.32685617,69491.0,69490.0,0.47955736]
[1730565240176,0.32685617,69491.0,69490.0,0.37235574]
[1730565240637,0.32675617,69491.0,69490.0,0.37235574]
[1730565240852,0.32675617,69491.0,69490.0,0.47955736]